fUSD/lending_fUSD_20251222
["ID","MTS","AMOUNT","RATE_DAILY","PERIOD"]
[399475411,1766403033334,-182.52,0.00015879,2]
[399475412,1766403033344,-578.20924308,0.00015906,2]
[399475413,1766403033354,-194.72792766,0.00015906,2]
[399475414,1766403033364,-500.0,0.00015906,2]
[399475415,1766403033373,-250.0,0.00015906,2]
[399475416,1766403033383,-500.0,0.00015906,2]
[399475417,1766403033393,-250.0,0.00015906,2]
[399475418,1766403033402,-250.0,0.00015906,2]
[399475419,1766403033412,-250.0,0.00015906,2]
[399475420,1766403033421,-250.0,0.00015906,2]
[399475421,1766403033431,-250.0,0.00015906,2]
[399475422,1766403033440,-262.43005252,0.00015906,2]
[399475423,1766403033450,-250.0,0.00015906,2]
[399475424,1766403033460,-250.0,0.00015906,2]
[399475425,1766403033470,-250.0,0.00015906,2]
[399475426,1766403033479,-500.0,0.00015906,2]
[399475427,1766403033489,-500.0,0.00015906,2]
[399475428,1766403033498,-250.0,0.00015906,2]
[399475429,1766403033507,-500.0,0.00015906,2]
[399475430,1766403033516,-500.0,0.00015906,2]
[399475431,1766403033526,-250.0,0.00015906,2]
[399475432,1766403033535,-500.0,0.00015906,2]
[399475433,1766403033545,-500.0,0.00015906,2]
[399475434,1766403033555,-250.0,0.00015906,2]
[399475435,1766403033564,-500.0,0.00015906,2]
[399475436,1766403033573,-500.0,0.00015906,2]
[399475437,1766403033582,-250.0,0.00015906,2]
[399475438,1766403033592,-500.0,0.00015906,2]
[399475439,1766403033604,-322.6107,0.00015906,2]
[399475440,1766403033614,-500.0,0.00015906,2]
[399475441,1766403033624,-500.0,0.00015906,2]
[399475442,1766403033634,-250.0,0.00015906,2]
[399475443,1766403033644,-500.0,0.00015906,2]
[399475444,1766403033654,-500.0,0.00015906,2]
[399475445,1766403033664,-250.0,0.00015906,2]
[399475446,1766403033674,-250.0,0.00015906,2]
[399475447,1766403033683,-500.0,0.00015906,2]
[399475448,1766403033693,-500.0,0.00015906,2]
[399475449,1766403033703,-250.0,0.00015906,2]
[399475450,1766403033714,-250.0,0.00015906,2]
[399475451,1766403033724,-500.0,0.00015906,2]
[399475452,1766403033733,-250.0,0.00015906,2]
[399475453,1766403033742,-500.0,0.00015906,2]
[399475454,1766403033751,-250.0,0.00015906,2]
[399475455,1766403033760,-500.0,0.00015906,2]
[399475456,1766403033769,-250.0,0.00015906,2]
[399475457,1766403033778,-500.0,0.00015906,2]
[399475458,1766403033787,-250.0,0.00015906,2]
[399475459,1766403033797,-500.0,0.00015906,2]
[399475460,1766403033807,-533.88981491,0.00015906,2]
[399475461,1766403033816,-250.0,0.00015906,2]
[399475462,1766403033826,-500.0,0.00015906,2]
[399475463,1766403033835,-250.0,0.00015906,2]
[399475464,1766403033846,-500.0,0.00015906,2]
[399475465,1766403033855,-500.0,0.00015906,2]
[399475466,1766403033864,-250.0,0.00015906,2]
[399475467,1766403033874,-500.0,0.00015906,2]
[399475468,1766403033884,-331.97102116,0.00015906,2]
[399475469,1766403033893,-250.0,0.00015906,2]
[399475470,1766403033902,-500.0,0.00015906,2]
[399475471,1766403033913,-250.0,0.00015906,2]
[399475472,1766403033922,-173.46891158,0.00015906,2]
[399475473,1766403033931,-200.0,0.00015906,2]
[399475474,1766403033941,-642.94,0.00015906,2]
[399475475,1766403033950,-207.4,0.00015906,2]
[399475476,1766403033960,-215.0738,0.00015906,2]
[399475477,1766403033970,-223.0315306,0.00015906,2]
[399475478,1766403033979,-231.28369723,0.00015906,2]
[399475479,1766403033988,-239.84119403,0.00015906,2]
[399475480,1766403033998,-248.71531821,0.00015906,2]
[399475481,1766403034008,-213.27669905,0.00015906,2]
[399475482,1766403034018,-500.0,0.00015906,2]
[399475483,1766403034029,-384.56641251,0.00015906,2]
[399475484,1766403034039,-151.0,0.00016,2]
[399475485,1766403034050,-151.0,0.00016,2]
[399475486,1766403034059,-36147.20229644,0.00016,4]
[399475487,1766403034070,-2100.51222964,0.00016015,2]
[399475488,1766403034080,-163.92354704,0.00016046,2]
[399475489,1766403034089,-15393.32755644,0.00016047,2]
[399475490,1766403034673,-5610.104616,0.00016047,2]
[399475491,1766403034698,-525.74328535,0.00016047,2]
[399475492,1766403034710,-1337.70986208,0.00016047,2]
[399475493,1766403034720,-1257.02204758,0.00016047,2]
[399475649,1766403039946,-573.62214,0.00016047,2]
[399475650,1766403040160,-8903.56890921,0.00016047,2]
[399475655,1766403043019,-21836.60216024,0.00016047,2]
[399475656,1766403043035,-6876.58690395,0.00016047,2]
[399475657,1766403043132,-489259.97820883,0.00016047,2]
[399475759,1766403045883,-400.0,0.00016047,2]
[399475760,1766403046052,-18120.93962766,0.00016047,2]
[399475763,1766403064573,354.7280392,0.000226,120]
[399475764,1766403070183,250.0,0.00012816,2]
[399475765,1766403294638,10000.0,0.00022,30]
[399475766,1766403724836,280.98230582,0.00015906,120]
[399475773,1766404231905,-983.12,0.00012928,2]
[399475774,1766404231915,-247.05,0.00012943,2]
[399475775,1766404231924,-300.0,0.00013368,2]
[399475776,1766404231933,-300.0,0.00013368,2]
[399475777,1766404231942,-372.23451479,0.00013368,2]
[399475778,1766404231957,-827.76548521,0.00013368,2]
[399475779,1766404231967,-150.0,0.00013369,2]
[399475780,1766404231976,-150.0,0.00013369,2]
[399475781,1766404231985,-150.0,0.00013369,2]
[399475782,1766404231994,-500.0,0.00013369,2]
[399475783,1766404232007,-500.0,0.00013369,2]
[399475784,1766404232017,-580.0,0.00013369,2]
[399475785,1766404232026,-500.0,0.00013369,2]
[399475786,1766404232037,-150.0,0.00013369,2]
[399475787,1766404232048,-150.0,0.00013369,2]
[399475788,1766404232057,-500.0,0.00013369,2]
[399475789,1766404232066,-150.0,0.00013369,2]
[399475790,1766404232075,-150.0,0.00013369,2]
[399475791,1766404232084,-293.23451479,0.00013369,2]
[399475792,1766404232100,-206.76548521,0.00013369,2]
[399475793,1766404232110,-150.0,0.00013369,2]
[399475794,1766404232121,-150.0,0.00013396,2]
[399475795,1766404232130,-150.0,0.00013396,2]
[399475796,1766404232140,-280.7089659,0.00013396,2]
[399475797,1766404232149,-500.0,0.00013396,2]
[399475798,1766404232158,-500.0,0.00013396,2]
[399475799,1766404232167,-580.0,0.00013396,2]
[399475800,1766404232176,-500.0,0.00013396,2]
[399475801,1766404232185,-150.0,0.00013396,2]
[399475802,1766404232195,-500.0,0.00013396,2]
[399475803,1766404232203,-500.0,0.00013396,2]
[399475804,1766404232213,-150.0,0.00013396,2]
[399475805,1766404232222,-150.0,0.00013424,2]
[399475806,1766404232231,-451.31035432,0.00013424,2]
[399475807,1766404232240,-500.0,0.00013424,2]
[399475808,1766404232249,-580.0,0.00013424,2]
[399475809,1766404232259,-500.0,0.00013424,2]
[399475810,1766404232268,-150.0,0.00013424,2]
[399475811,1766404232277,-208.0,0.00013424,2]
[399475812,1766404232288,-150.0,0.00013424,2]
[399475813,1766404232297,-150.0,0.00013451,2]
[399475815,1766404232306,-500.0,0.00013451,2]
[399475816,1766404232315,-580.0,0.00013451,2]
[399475818,1766404232324,-500.0,0.00013451,2]
[399475819,1766404232333,-150.0,0.00013451,2]
[399475820,1766404232347,-150.0,0.00013451,2]
[399475821,1766404232356,-150.0,0.00013479,2]
[399475822,1766404232367,-500.0,0.00013479,2]
[399475823,1766404232376,-580.0,0.00013479,2]
[399475824,1766404232389,-500.0,0.00013479,2]
[399475825,1766404232398,-150.0,0.00013479,2]
[399475826,1766404232409,-150.0,0.00013479,2]
[399475827,1766404232421,-359.51458071,0.00013479,2]
[399475828,1766404232430,-250.0,0.00013506,2]
[399475829,1766404232439,-500.0,0.00013506,2]
[399475830,1766404232449,-580.0,0.00013506,2]
[399475831,1766404232458,-500.0,0.00013506,2]
[399475832,1766404232467,-250.0,0.00013506,2]
[399475833,1766404232477,-250.0,0.00013506,2]
[399475834,1766404232487,-500.0,0.00013533,2]
[399475835,1766404232496,-580.0,0.00013533,2]
[399475836,1766404232507,-500.0,0.00013533,2]
[399475837,1766404232518,-500.0,0.00013561,2]
[399475838,1766404232528,-580.0,0.00013561,2]
[399475839,1766404232537,-607.36136932,0.00013561,2]
[399475840,1766404232547,-500.0,0.00013588,2]
[399475841,1766404232556,-580.0,0.00013588,2]
[399475842,1766404232566,-500.0,0.00013616,2]
[399475843,1766404232575,-580.0,0.00013616,2]
[399475844,1766404232584,-195.0,0.00013634,2]
[399475845,1766404232594,-150.0,0.00013642,2]
[399475846,1766404232604,-151.94,0.00013642,2]
[399475847,1766404232613,-172.65369625,0.00013643,2]
[399475848,1766404232623,-500.0,0.00013643,2]
[399475849,1766404232632,-500.0,0.00013643,2]
[399475850,1766404232641,-222.91830755,0.00013643,2]
[399475851,1766404232651,-500.0,0.00013643,2]
[399475852,1766404232661,-500.0,0.00013643,2]
[399475853,1766404232671,-500.0,0.00013643,2]
[399475854,1766404232681,-500.0,0.00013643,2]
[399475855,1766404232691,-500.0,0.00013643,2]
[399475856,1766404232701,-163.76931911,0.00013643,2]
[399475857,1766404232711,-500.0,0.00013643,2]
[399475858,1766404232721,-500.0,0.00013643,2]
[399475859,1766404232730,-160.1870397,0.00013643,2]
[399475860,1766404232739,-216.339116,0.00013643,2]
[399475861,1766404232749,-500.0,0.00013643,2]
[399475862,1766404232758,-165.49824072,0.00013643,2]
[399475863,1766404232768,-500.0,0.00013643,2]
[399475864,1766404232777,-500.0,0.00013643,2]
[399475865,1766404232786,-500.0,0.00013643,2]
[399475866,1766404232795,-500.0,0.00013643,2]
[399475867,1766404232804,-165.58172588,0.00013643,2]
[399475868,1766404232814,-500.0,0.00013643,2]
[399475869,1766404232823,-500.0,0.00013643,2]
[399475870,1766404232832,-500.0,0.00013643,2]
[399475871,1766404232841,-500.0,0.00013643,2]
[399475872,1766404232851,-165.36365012,0.00013643,2]
[399475873,1766404232860,-500.0,0.00013643,2]
[399475874,1766404232870,-500.0,0.00013643,2]
[399475875,1766404232879,-500.0,0.00013643,2]
[399475876,1766404232888,-500.0,0.00013643,2]
[399475877,1766404232897,-500.0,0.00013643,2]
[399475878,1766404232908,-500.0,0.00013643,2]
[399475879,1766404232917,-500.0,0.00013643,2]
[399475880,1766404232927,-500.51901365,0.00013643,2]
[399475881,1766404232937,-500.0,0.00013643,2]
[399475882,1766404232946,-500.0,0.00013643,2]
[399475883,1766404232960,-500.0,0.00013643,2]
[399475884,1766404232969,-500.0,0.00013643,2]
[399475885,1766404232980,-201.72114218,0.00013643,2]
[399475886,1766404232989,-160.27643791,0.00013643,2]
[399475887,1766404232999,-471.10011399,0.00013643,2]
[399475888,1766404233008,-580.0,0.00013643,2]
[399475889,1766404233018,-917.51,0.00013643,2]
[399475890,1766404233027,-580.0,0.0001367,2]
[399475891,1766404233036,-580.0,0.00013698,2]
[399475892,1766404233045,-500.0,0.00013698,2]
[399475893,1766404233054,-515.57929643,0.00013698,2]
[399475894,1766404233062,-612.93,0.00013699,2]
[399475895,1766404233072,-580.0,0.00013725,2]
[399475896,1766404233082,-580.0,0.00013753,2]
[399475897,1766404233091,-580.0,0.0001378,2]
[399475898,1766404233103,-580.0,0.00013807,2]
[399475899,1766404233113,-580.0,0.00013835,2]
[399475900,1766404233122,-490.0,0.00013845,2]
[399475901,1766404233132,-580.0,0.00013862,2]
[399475902,1766404233142,-155.0,0.00013865,2]
[399475903,1766404233151,-399.0,0.00013872,2]
[399475904,1766404233160,-580.0,0.0001389,2]
[399475905,1766404233169,-230.0,0.00013892,2]
[399475906,1766404233178,-387.35828294,0.000139,2]
[399475907,1766404233187,-580.0,0.00013917,2]
[399475908,1766404233196,-500.0,0.00013917,2]
[399475909,1766404233205,-150.99,0.00013917,2]
[399475910,1766404233214,-150.99,0.00013917,2]
[399475911,1766404233223,-9999.99,0.00013917,2]
[399475912,1766404233232,-879.9,0.00013917,2]
[399475913,1766404233241,-151.41928743,0.00013917,2]
[399475914,1766404233251,-175.15780036,0.00013917,2]
[399475915,1766404233260,-152.83861574,0.00013917,2]
[399475916,1766404233270,-151.1761116,0.00013917,2]
[399475917,1766404233279,-150.52319248,0.00013917,2]
[399475918,1766404233288,-152.62996909,0.00013917,2]
[399475919,1766404233297,-150.83427243,0.00013917,2]
[399475920,1766404233306,-917.51,0.00013917,2]
[399475921,1766404233316,-257.0,0.0001392,2]
[399475922,1766404233325,-1426.0,0.00013931,2]
[399475923,1766404233334,-500.0,0.00013941,2]
[399475924,1766404233345,-298.29247323,0.00013941,2]
[399475925,1766404233355,-500.0,0.00013941,2]
[399475926,1766404233364,-500.0,0.00013941,2]
[399475927,1766404233374,-500.0,0.00013941,2]
[399475928,1766404233383,-158.17047339,0.00013941,2]
[399475929,1766404233393,-500.0,0.00013941,2]
[399475930,1766404233403,-500.0,0.00013941,2]
[399475931,1766404233412,-500.0,0.00013941,2]
[399475932,1766404233422,-500.0,0.00013941,2]
[399475933,1766404233431,-500.0,0.00013941,2]
[399475934,1766404233440,-500.0,0.00013941,2]
[399475935,1766404233450,-500.0,0.00013941,2]
[399475936,1766404233459,-500.0,0.00013941,2]
[399475937,1766404233468,-500.0,0.00013941,2]
[399475938,1766404233478,-500.0,0.00013941,2]
[399475939,1766404233487,-500.0,0.00013941,2]
[399475940,1766404233496,-500.0,0.00013941,2]
[399475941,1766404233505,-500.0,0.00013941,2]
[399475942,1766404233515,-580.0,0.00013944,2]
[399475943,1766404233525,-504.41502637,0.00013944,2]
[399475944,1766404233535,-452.0,0.00013948,2]
[399475945,1766404233544,-814.0,0.00013959,2]
[399475946,1766404233553,-580.0,0.00013972,2]
[399475947,1766404233563,-170.0,0.00013975,2]
[399475948,1766404233572,-1436.0,0.00013986,2]
[399475949,1766404233581,-1000.0,0.00013991,2]
[399475950,1766404233590,-405.16026509,0.00013998,2]
[399475951,1766404233599,-591.33646176,0.00013999,2]
[399475952,1766404233608,-196.0,0.00014003,2]
[399475953,1766404233618,-640.0,0.00014014,2]
[399475954,1766404233627,-416.0,0.00014031,2]
[399475955,1766404233636,-1302.0,0.00014042,2]
[399475956,1766404233645,-1275.0,0.0001407,2]
[399475957,1766404233655,-200.0,0.00014082,2]
[399475958,1766404233665,-151.0,0.00014082,2]
[399475959,1766404233675,-500.0,0.00014082,2]
[399475960,1766404233684,-151.0,0.00014082,2]
[399475961,1766404233694,-500.0,0.00014082,2]
[399475962,1766404233704,-151.0,0.00014082,2]
[399475963,1766404233714,-500.0,0.00014082,2]
[399475964,1766404233723,-151.0,0.00014082,2]
[399475965,1766404233732,-500.0,0.00014082,2]
[399475966,1766404233742,-151.0,0.00014082,2]
[399475967,1766404233751,-500.0,0.00014082,2]
[399475968,1766404233761,-151.0,0.00014082,2]
[399475969,1766404233771,-500.0,0.00014082,2]
[399475970,1766404233780,-151.0,0.00014082,2]
[399475971,1766404233790,-500.0,0.00014082,2]
[399475972,1766404233800,-151.0,0.00014082,2]
[399475973,1766404233809,-500.0,0.00014082,2]
[399475974,1766404233818,-151.0,0.00014082,2]
[399475975,1766404233828,-500.0,0.00014082,2]
[399475976,1766404233837,-500.0,0.00014082,2]
[399475977,1766404233846,-151.0,0.00014082,2]
[399475978,1766404233855,-500.0,0.00014082,2]
[399475979,1766404233865,-500.0,0.00014082,2]
[399475980,1766404233874,-151.0,0.00014082,2]
[399475981,1766404233883,-500.0,0.00014082,2]
[399475982,1766404233893,-500.0,0.00014082,2]
[399475983,1766404233902,-151.0,0.00014082,2]
[399475984,1766404233911,-500.0,0.00014082,2]
[399475985,1766404233920,-500.0,0.00014082,2]
[399475986,1766404233930,-151.0,0.00014082,2]
[399475987,1766404233939,-500.0,0.00014082,2]
[399475988,1766404233948,-500.0,0.00014082,2]
[399475989,1766404233957,-500.0,0.00014082,2]
[399475990,1766404233966,-500.0,0.00014082,2]
[399475991,1766404233976,-500.0,0.00014082,2]
[399475992,1766404233986,-500.0,0.00014082,2]
[399475993,1766404233995,-196.17335195,0.00014082,2]
[399475994,1766404234004,-500.0,0.00014082,2]
[399475995,1766404234013,-500.0,0.00014082,2]
[399475996,1766404234023,-500.0,0.00014082,2]
[399475997,1766404234032,-500.0,0.00014082,2]
[399475998,1766404234041,-200.0,0.00014082,2]
[399475999,1766404234050,-200.0,0.00014082,2]
[399476000,1766404234059,-500.0,0.00014082,2]
[399476001,1766404234069,-322.62141336,0.00014082,2]
[399476002,1766404234079,-151.0,0.00014088,2]
[399476003,1766404234088,-151.0,0.00014088,2]
[399476004,1766404234098,-184.99943167,0.0001409,2]
[399476005,1766404234107,-46748.46849644,0.00014091,2]
[399476006,1766404234121,-124726.23334172,0.00014091,2]
[399476007,1766404234136,-67761.48917554,0.00014091,2]
[399476008,1766404234153,-5078.37780279,0.00014091,2]
[399476010,1766404238127,-162.91531541,0.00013643,2]
[399476011,1766404238137,-144.28169511,0.00013643,2]
[399476012,1766404238180,-355.71830489,0.00013643,2]
[399476013,1766404238190,-276.5402013,0.00013643,2]
[399476014,1766404238200,-1567.87198068,0.00014091,2]
[399476015,1766404238233,-299563.4694408,0.00014091,2]
[399476022,1766404240593,-224986.8297161,0.00014091,2]
[399476127,1766404243056,-2045.39356299,0.00014091,2]
[399476128,1766404243069,-834.90360017,0.00014091,2]
[399476129,1766404243080,-1218.10437464,0.00014091,2]
[399476130,1766404243111,-899.99,0.00014091,2]
[399476131,1766404243123,-2284.10647368,0.00014091,2]
[399476132,1766404243134,-222284.76203445,0.00014091,2]
[399476133,1766404243144,-1968.0,0.00014098,2]
[399476134,1766404243153,-702.75113427,0.00014101,2]
[399476135,1766404243163,-1546.0,0.00014125,2]
[399476136,1766404243172,-977.0,0.00014153,2]
[399476137,1766404243182,-871.0,0.00014181,2]
[399476138,1766404243193,-500.0,0.00014191,2]
[399476139,1766404243206,-500.0,0.00014191,2]
[399476140,1766404243216,-500.0,0.00014191,2]
[399476141,1766404243226,-1000.0,0.00014191,2]
[399476142,1766404243236,-383.08278953,0.00014191,2]
[399476143,1766404243247,-116.91721047,0.00014191,2]
[399476144,1766404243257,-500.0,0.00014191,2]
[399476145,1766404243266,-500.0,0.00014191,2]
[399476146,1766404243275,-500.0,0.00014191,2]
[399476147,1766404243284,-1080.20183557,0.00014191,2]
[399476148,1766404243295,-1000.0,0.00014191,2]
[399476149,1766404243305,-917.51,0.00014191,2]
[399476150,1766404243316,-1852.42,0.00014192,2]
[399476151,1766404243327,-3638.81,0.00014192,2]
[399476152,1766404243336,-1797.0,0.00014209,2]
[399476153,1766404243348,-1845.78,0.00014211,2]
[399476154,1766404243357,-1062.0,0.00014237,2]
[399476155,1766404243366,-523.0,0.00014264,2]
[399476156,1766404243376,-716.0,0.00014292,2]
[399476157,1766404243386,-940.0,0.0001432,2]
[399476158,1766404243396,-221.0,0.00014348,2]
[399476159,1766404243405,-2999.30298921,0.00014361,2]
[399476160,1766404243418,-8816.28701079,0.00014361,2]
[399476161,1766404243427,-183.14,0.00014361,2]
[399476162,1766404243436,-1947.0,0.00014376,2]
[399476163,1766404243446,-1000.0,0.00014379,2]
[399476164,1766404243455,-1383.0,0.00014404,2]
[399476165,1766404243463,-405.16026505,0.00014413,2]
[399476166,1766404243473,-2344.98,0.0001442,2]
[399476167,1766404243482,-766.0,0.00014431,2]
[399476169,1766404243491,-1920.0,0.00014459,2]
[399476171,1766404243501,-917.51,0.00014465,2]
[399476172,1766404243510,-200.0,0.0001463,2]
[399476174,1766404243520,-200.0,0.0001463,2]
[399476176,1766404243529,-500.0,0.0001463,2]
[399476178,1766404243538,-241.0,0.00014655,2]
[399476179,1766404243547,-420.0,0.00014655,2]
[399476180,1766404243556,-600.0,0.00014705,2]
[399476181,1766404243566,-600.0,0.00014705,2]
[399476182,1766404243575,-600.0,0.00014705,2]
[399476183,1766404243584,-600.0,0.00014705,2]
[399476184,1766404243593,-600.0,0.00014705,2]
[399476185,1766404243603,-1680.0,0.00014705,2]
[399476186,1766404243613,-150.0,0.00014717,2]
[399476187,1766404243623,-150.92912493,0.00014733,2]
[399476188,1766404243632,-1500.0,0.00014739,2]
[399476189,1766404243641,-1000.0,0.00014739,2]
[399476190,1766404243649,-917.51,0.00014739,2]
[399476191,1766404243659,-255.0,0.0001476,2]
[399476192,1766404243668,-500.0,0.00014767,2]
[399476193,1766404243677,-405.16026505,0.00014827,2]
[399476194,1766404243687,-150.0,0.00014878,2]
[399476195,1766404243696,-230.06171469,0.00014919,2]
[399476196,1766404243705,-999.0,0.00014982,3]
[399476197,1766404243714,-474.79788768,0.00014996,2]
[399476198,1766404243723,-300.0,0.00014997,2]
[399476199,1766404243733,-195.0,0.00014997,2]
[399476200,1766404243742,-151.0,0.00015009,2]
[399476201,1766404243751,-917.51,0.00015013,2]
[399476202,1766404243760,-152.98420133,0.00015068,2]
[399476203,1766404243769,-150.0,0.00015068,2]
[399476204,1766404243779,-150.0,0.00015095,2]
[399476205,1766404243788,-200.0,0.00015178,2]
[399476206,1766404243798,-200.0,0.00015178,2]
[399476207,1766404243807,-500.0,0.00015178,2]
[399476208,1766404243817,-405.16026505,0.00015242,2]
[399476209,1766404243826,-194.72792766,0.00015281,2]
[399476210,1766404243835,-500.0,0.00015281,2]
[399476211,1766404243844,-250.0,0.00015281,2]
[399476212,1766404243854,-322.6107,0.00015281,2]
[399476213,1766404243863,-151.0,0.00015281,2]
[399476214,1766404243873,-500.0,0.00015281,2]
[399476215,1766404243882,-250.0,0.00015281,2]
[399476216,1766404243891,-533.88981491,0.00015281,2]
[399476217,1766404243901,-500.0,0.00015281,2]
[399476218,1766404243910,-250.0,0.00015281,2]
[399476219,1766404243919,-500.0,0.00015281,2]
[399476220,1766404243928,-250.0,0.00015281,2]
[399476221,1766404243938,-500.0,0.00015281,2]
[399476222,1766404243947,-250.0,0.00015281,2]
[399476223,1766404243958,-500.0,0.00015281,2]
[399476224,1766404243979,-473.32321889,0.00015281,2]
[399476225,1766404244027,-197.26302206,0.00015281,2]
[399476226,1766404244037,-250.0,0.00015281,2]
[399476227,1766404244046,-84.51097794,0.00015281,2]
[399476229,1766404246222,-415.48902206,0.00015281,2]
[399476230,1766404246232,-137.80804257,0.00015281,2]
[399476231,1766404246252,-112.19195743,0.00015281,2]
[399476232,1766404246263,-500.0,0.00015281,2]
[399476233,1766404246272,-250.0,0.00015281,2]
[399476234,1766404246282,-297.10804257,0.00015281,2]
[399476235,1766404246294,-202.89195743,0.00015281,2]
[399476236,1766404246303,-111.84883392,0.00015281,2]
[399476237,1766404246315,-138.15116608,0.00015281,2]
[399476238,1766404246324,-500.0,0.00015281,2]
[399476239,1766404246333,-250.0,0.00015281,2]
[399476240,1766404246343,-111.84883392,0.00015281,2]
[399476242,1766405252490,198.75,7.259e-05,2]
[399476243,1766405255201,198.75,7.641e-05,2]
[399476244,1766405255402,198.75,8.023e-05,2]
[399476245,1766405255601,198.75,8.405e-05,2]
[399476246,1766405255799,198.75,8.787e-05,2]
[399476247,1766405256004,198.75,9.169e-05,2]
[399476248,1766405256504,198.75,9.551e-05,2]
[399476249,1766405256569,198.75,9.933e-05,2]
[399476250,1766405256638,198.75,0.00010315,2]
[399476251,1766405256819,198.75,0.00010697,2]
[399476252,1766405257025,198.75,0.00011079,2]
[399476253,1766405257243,198.75,0.00011461,2]
[399476254,1766405257456,198.75,0.00011843,2]
[399476255,1766405257659,198.75,0.00012226,2]
[399476256,1766405257877,198.75,0.00012608,2]
[399476257,1766405408093,300.0,0.00012904,3]
[399476267,1766405432119,-300.0,0.00012932,2]
[399476268,1766405432128,-300.0,0.00012942,2]
[399476269,1766405432137,-1200.0,0.00012942,2]
[399476270,1766405432146,-300.0,0.00012942,2]
[399476271,1766405432155,-10526.19,0.00012943,2]
[399476272,1766405432164,-198.75,0.0001299,2]
[399476273,1766405432173,-1049.183,0.00013272,2]
[399476274,1766405432182,-178.346,0.00013272,2]
[399476275,1766405432191,-73148.64304697,0.00013342,2]
[399476276,1766405432205,-68702.87707369,0.00013342,2]
[399476277,1766405432228,-1159.58116635,0.00013342,2]
[399476278,1766405432283,-89396.70322028,0.00013342,2]
[399476336,1766405438191,-500.0,0.00013341,2]
[399476337,1766405438201,-500.19179488,0.00013341,2]
[399476338,1766405438210,-500.0,0.00013341,2]
[399476339,1766405438221,-23886.51462933,0.00013342,2]
[399476340,1766405438297,-1581.4150026,0.00013342,2]
[399476341,1766405438404,-492.08713989,0.00013342,2]
[399476473,1766405440317,-720.70480241,0.00013342,2]
[399476474,1766405440328,-3975.0117016,0.00013342,2]
[399476475,1766405440339,-1599.31574393,0.00013342,2]
[399476476,1766405440479,-7484.16,0.00013342,2]
[399476477,1766405440531,-6357.5,0.00013342,2]
[399476478,1766405440543,-4823.69043218,0.00013342,2]
[399476493,1766405443344,-371.95241786,0.00013342,2]
[399476494,1766405443356,-594.27179784,0.00013342,2]
[399476495,1766405443398,-13578.8663878,0.00013342,2]
[399476496,1766405443583,-304.96,0.00013342,2]
[399476497,1766405443594,-3066.8121,0.00013342,2]
[399476498,1766405443604,-1068.475,0.00013342,2]
[399476499,1766405443615,-841.78985,0.00013342,2]
[399476500,1766405443626,-2099.213705,0.00013342,2]
[399476518,1766405446590,-253.23285668,0.00013342,2]
[399476519,1766405446603,-6670.87519204,0.00013342,2]
[399476520,1766405446614,-3819.7999,0.00013342,2]
[399476523,1766405835125,150.0,0.00012575,2]
[399476524,1766405891192,19978.61,0.00012546,2]
[399476525,1766405982387,999.0,0.00013151,3]
[399476527,1766406217556,1172.49,0.00012452,2]
[399476528,1766406328089,31824.17451602,0.00012422,2]
[399476529,1766406331415,131087.80968836,0.0002,120]